[Event "Titled Tuesday Blitz July 05 Early 2022"]
[White "Terry, Renato"]
[Black "Timofeev, Artyom"]
[WhiteFideId "3803457"]
[BlackFideId "4140419"]
[WhiteElo "2577"]
[BlackElo "2578"]
[Result "0-1"]
[Round "08"]
[TimeControl "180+1"]
[Date "2022.07.05"]
[WhiteClock "0:00:03"]
[BlackClock "0:00:07"]

1. d4 {[%clk 0:03:00]}  Nf6 {[%clk 0:02:59]} 2. Bg5 {[%clk 0:03:00]}  d5 {[%clk 0:02:58]} 3. Bxf6 {[%clk 0:03:00]}  exf6 {[%clk 0:02:57]} 4. e3 {[%clk 0:03:01]}  Bd6 {[%clk 0:02:56]} 5. c4 {[%clk 0:03:01]}  dxc4 {[%clk 0:02:56]} 6. Bxc4 {[%clk 0:03:02]}  O-O {[%clk 0:02:56]} 7. Nf3 {[%clk 0:02:59]}  Bg4 {[%clk 0:02:55]} 8. Qb3 {[%clk 0:02:57]}  Qc8 {[%clk 0:02:41]} 9. Nbd2 {[%clk 0:02:56]}  c6 {[%clk 0:02:41]} 10. h3 {[%clk 0:02:54]}  Bxf3 {[%clk 0:02:40]} 11. Nxf3 {[%clk 0:02:54]}  Nd7 {[%clk 0:02:37]} 12. O-O {[%clk 0:02:54]}  Nb6 {[%clk 0:02:37]} 13. Bd3 {[%clk 0:02:54]}  Qe6 {[%clk 0:02:35]} 14. Qc2 {[%clk 0:02:47]}  g6 {[%clk 0:02:34]} 15. e4 {[%clk 0:02:47]}  Rac8 {[%clk 0:02:29]} 16. a3 {[%clk 0:02:40]}  c5 {[%clk 0:02:02]} 17. d5 {[%clk 0:02:40]}  Qe7 {[%clk 0:02:02]} 18. b3 {[%clk 0:02:40]}  Nd7 {[%clk 0:02:00]} 19. a4 {[%clk 0:02:35]}  a6 {[%clk 0:01:51]} 20. Rfe1 {[%clk 0:02:33]}  Kg7 {[%clk 0:01:47]} 21. Nd2 {[%clk 0:02:24]}  Be5 {[%clk 0:01:38]} 22. Rad1 {[%clk 0:02:21]}  Bd4 {[%clk 0:01:34]} 23. Bf1 {[%clk 0:02:12]}  Ne5 {[%clk 0:01:31]} 24. Nc4 {[%clk 0:02:00]}  Qd7 {[%clk 0:01:15]} 25. Nb6 {[%clk 0:01:52]}  Qc7 {[%clk 0:01:07]} 26. Nxc8 {[%clk 0:01:51]}  Rxc8 {[%clk 0:01:07]} 27. Kh1 {[%clk 0:01:48]}  g5 {[%clk 0:01:05]} 28. g3 {[%clk 0:01:25]}  Qd7 {[%clk 0:00:58]} 29. Bg2 {[%clk 0:01:21]}  b5 {[%clk 0:00:54]} 30. axb5 {[%clk 0:01:21]}  axb5 {[%clk 0:00:54]} 31. f4 {[%clk 0:01:04]}  Ng6 {[%clk 0:00:54]} 32. Rf1 {[%clk 0:01:02]}  Re8 {[%clk 0:00:50]} 33. Qd3 {[%clk 0:00:57]}  gxf4 {[%clk 0:00:42]} 34. gxf4 {[%clk 0:00:58]}  b4 {[%clk 0:00:39]} 35. Qg3 {[%clk 0:00:55]}  Kh8 {[%clk 0:00:39]} 36. Bf3 {[%clk 0:00:44]}  Rg8 {[%clk 0:00:37]} 37. Bg4 {[%clk 0:00:44]}  Qd6 {[%clk 0:00:37]} 38. Qf3 {[%clk 0:00:40]}  Nh4 {[%clk 0:00:33]} 39. Qg3 {[%clk 0:00:41]}  Ng6 {[%clk 0:00:34]} 40. Rd2 {[%clk 0:00:38]}  Ne7 {[%clk 0:00:30]} 41. Qh4 {[%clk 0:00:32]}  f5 {[%clk 0:00:28]} 42. Bf3 {[%clk 0:00:25]}  fxe4 {[%clk 0:00:27]} 43. Bxe4 {[%clk 0:00:26]}  f5 {[%clk 0:00:27]} 44. Bf3 {[%clk 0:00:21]}  Nxd5 {[%clk 0:00:24]} 45. Rg2 {[%clk 0:00:20]}  Rxg2 {[%clk 0:00:22]} 46. Bxg2 {[%clk 0:00:21]}  Ne3 {[%clk 0:00:22]} 47. Re1 {[%clk 0:00:19]}  c4 {[%clk 0:00:14]} 48. bxc4 {[%clk 0:00:18]}  b3 {[%clk 0:00:14]} 49. Qf2 {[%clk 0:00:05]}  b2 {[%clk 0:00:13]} 50. Qe2 {[%clk 0:00:05]}  Qxf4 {[%clk 0:00:12]} 51. Rb1 {[%clk 0:00:05]}  Kg7 {[%clk 0:00:11]} 52. Rxb2 {[%clk 0:00:04]}  Bxb2 {[%clk 0:00:11]} 53. Qxb2+ {[%clk 0:00:05]}  Kg6 {[%clk 0:00:11]} 54. c5 {[%clk 0:00:05]}  Qc4 {[%clk 0:00:07]} 55. c6 {[%clk 0:00:05]}  Nxg2 {[%clk 0:00:08]} 56. Qxg2+ {[%clk 0:00:05]}  Kf6 {[%clk 0:00:08]} 57. Qf3 {[%clk 0:00:04]}  Qc1+ {[%clk 0:00:07]} 58. Kg2 {[%clk 0:00:04]}  Qc2+ {[%clk 0:00:07]} 59. Kf1 {[%clk 0:00:05]}  Qc1+ {[%clk 0:00:08]} 60. Kg2 {[%clk 0:00:05]}  Qc2+ {[%clk 0:00:08]} 61. Kf1 {[%clk 0:00:06]}  Qc1+ {[%clk 0:00:08]} 62. Ke2 {[%clk 0:00:06]}  Qc2+ {[%clk 0:00:09]} 63. Ke1 {[%clk 0:00:06]}  Qc1+ {[%clk 0:00:09]} 64. Kf2 {[%clk 0:00:06]}  Qc2+ {[%clk 0:00:10]} 65. Kg3 {[%clk 0:00:06]}  Qc5 {[%clk 0:00:10]} 66. Qf4 {[%clk 0:00:04]}  Qc3+ {[%clk 0:00:09]} 67. Kg2 {[%clk 0:00:02]}  Qxc6+ {[%clk 0:00:08]} 68. Kh2 {[%clk 0:00:02]}  Qc2+ {[%clk 0:00:08]} 69. Kg3 {[%clk 0:00:02]}  Qc3+ {[%clk 0:00:07]} 70. Kg2 {[%clk 0:00:02]}  Kg6 {[%clk 0:00:06]} 71. Qd6+ {[%clk 0:00:02]}  Qf6 {[%clk 0:00:06]} 72. Qb8 {[%clk 0:00:02]}  Qg5+ {[%clk 0:00:06]} 73. Kf3 {[%clk 0:00:03]}  Qh5+ {[%clk 0:00:06]} 74. Kg3 {[%clk 0:00:03]}  Qg5+ {[%clk 0:00:06]} 75. Kf3 {[%clk 0:00:04]}  Qe7 {[%clk 0:00:07]} 76. Qb6+ {[%clk 0:00:04]}  Kf7 {[%clk 0:00:07]} 77. Qb3+ {[%clk 0:00:04]}  Qe6 {[%clk 0:00:07]} 78. Qb7+ {[%clk 0:00:04]}  Kg6 {[%clk 0:00:07]} 79. Qa8 {[%clk 0:00:04]}  Qb3+ {[%clk 0:00:07]} 80. Kf4 {[%clk 0:00:03]}  Qc4+ {[%clk 0:00:07]} 81. Kf3 {[%clk 0:00:02]}  Qd3+ {[%clk 0:00:07]} 82. Kf4 {[%clk 0:00:02]}  Qd4+ {[%clk 0:00:07]} 83. Kf3 {[%clk 0:00:02]}  Qf6 {[%clk 0:00:07]} 84. Kg2 {[%clk 0:00:02]}  Kg5 {[%clk 0:00:07]} 85. Qa4 {[%clk 0:00:02]}  f4 {[%clk 0:00:06]} 86. Kf3 {[%clk 0:00:02]}  Qc3+ {[%clk 0:00:05]} 87. Ke2 {[%clk 0:00:02]}  Qe3+ {[%clk 0:00:05]} 88. Kf1 {[%clk 0:00:02]}  Qxh3+ {[%clk 0:00:06]} 89. Ke2 {[%clk 0:00:03]}  Qe3+ {[%clk 0:00:06]} 90. Kd1 {[%clk 0:00:02]}  h5 {[%clk 0:00:06]} 91. Qb5+ {[%clk 0:00:02]}  Kg4 {[%clk 0:00:06]} 92. Qd7+ {[%clk 0:00:02]}  Kg3 {[%clk 0:00:06]} 93. Qg7+ {[%clk 0:00:02]}  Kf2 {[%clk 0:00:06]} 94. Qb2+ {[%clk 0:00:02]}  Kg1 {[%clk 0:00:06]} 95. Qg7+ {[%clk 0:00:02]}  Qg3 {[%clk 0:00:05]} 96. Qd4+ {[%clk 0:00:02]}  Kh2 {[%clk 0:00:06]} 97. Qd2+ {[%clk 0:00:02]}  Kh3 {[%clk 0:00:06]} 98. Qd5 {[%clk 0:00:01]}  Qg4+ {[%clk 0:00:06]} 99. Ke1 {[%clk 0:00:01]}  Qg3+ {[%clk 0:00:06]} 100. Kf1 {[%clk 0:00:01]}  Kg4 {[%clk 0:00:05]} 101. Qe6+ {[%clk 0:00:02]}  Kg5 {[%clk 0:00:04]} 102. Qe7+ {[%clk 0:00:02]}  Kg4 {[%clk 0:00:05]} 103. Qe6+ {[%clk 0:00:03]}  Kh4 {[%clk 0:00:05]} 104. Qf6+ {[%clk 0:00:02]}  Kh3 {[%clk 0:00:05]} 105. Qf5+ {[%clk 0:00:02]}  Qg4 {[%clk 0:00:05]} 106. Qd3+ {[%clk 0:00:02]}  f3 {[%clk 0:00:06]} 107. Qd2 {[%clk 0:00:01]}  Qg2+ {[%clk 0:00:06]} 108. Qxg2+ {[%clk 0:00:01]}  fxg2+ {[%clk 0:00:06]} 109. Kg1 {[%clk 0:00:02]}  h4 {[%clk 0:00:07]} 110. Kf2 {[%clk 0:00:03]}  Kh2 {[%clk 0:00:07]} 0-1


[Site "https://www.chess.com"]

[Event "Titled Tuesday Blitz July 05 Early 2022"]
[White "Vakhlamov, Igor L."]
[Black "Khripachenko, Alexander"]
[WhiteFideId "24126748"]
[BlackFideId "54184975"]
[WhiteElo "2401"]
[BlackElo "2147"]
[Result "1-0"]
[Round "08"]
[TimeControl "180+1"]
[Date "2022.07.05"]
[WhiteClock "0:02:41"]
[BlackClock "0:02:18"]

1. e4 {[%clk 0:03:00]}  e5 {[%clk 0:02:58]} 2. Nf3 {[%clk 0:03:00]}  Nf6 {[%clk 0:02:59]} 3. Nc3 {[%clk 0:03:01]}  Nc6 {[%clk 0:02:59]} 4. Bb5 {[%clk 0:03:01]}  Nd4 {[%clk 0:03:00]} 5. Nxd4 {[%clk 0:03:01]}  exd4 {[%clk 0:03:01]} 6. e5 {[%clk 0:03:01]}  dxc3 {[%clk 0:03:00]} 7. exf6 {[%clk 0:03:02]}  Qxf6 {[%clk 0:03:01]} 8. dxc3 {[%clk 0:03:01]}  c6 {[%clk 0:03:00]} 9. Bd3 {[%clk 0:02:59]}  d5 {[%clk 0:02:57]} 10. O-O {[%clk 0:02:59]}  Bd6 {[%clk 0:02:51]} 11. Qh5 {[%clk 0:02:55]}  g6 {[%clk 0:02:46]} 12. Qh6 {[%clk 0:02:51]}  Be6 {[%clk 0:02:18]} 13. Bg5 {[%clk 0:02:42]}  Qe5 {[%clk 0:02:18]} 14. Rae1 {[%clk 0:02:41]} 1-0


[Site "https://www.chess.com"]

[Event "Titled Tuesday Blitz July 05 Early 2022"]
[White "Xu, Yi"]
[Black "Papp, Levente"]
[WhiteFideId "8605564"]
[BlackFideId "751243"]
[WhiteElo "2471"]
[BlackElo "2308"]
[Result "1-0"]
[Round "08"]
[TimeControl "180+1"]
[Date "2022.07.05"]
[WhiteClock "0:00:12"]
[BlackClock "0:00:13"]

1. e4 {[%clk 0:03:00]}  e6 {[%clk 0:03:00]} 2. d4 {[%clk 0:03:00]}  d5 {[%clk 0:03:00]} 3. Nc3 {[%clk 0:03:01]}  Bb4 {[%clk 0:03:00]} 4. e5 {[%clk 0:03:00]}  Ne7 {[%clk 0:03:01]} 5. a3 {[%clk 0:02:59]}  Bxc3+ {[%clk 0:03:01]} 6. bxc3 {[%clk 0:02:59]}  b6 {[%clk 0:03:02]} 7. Nf3 {[%clk 0:02:54]}  Ba6 {[%clk 0:03:02]} 8. Bxa6 {[%clk 0:02:49]}  Nxa6 {[%clk 0:03:03]} 9. Qd3 {[%clk 0:02:47]}  Nb8 {[%clk 0:03:02]} 10. h4 {[%clk 0:02:46]}  Nbc6 {[%clk 0:02:48]} 11. h5 {[%clk 0:02:43]}  h6 {[%clk 0:02:48]} 12. a4 {[%clk 0:02:36]}  Na5 {[%clk 0:02:48]} 13. Ba3 {[%clk 0:02:28]}  Qd7 {[%clk 0:02:46]} 14. O-O {[%clk 0:02:19]}  Nc4 {[%clk 0:02:38]} 15. Nh4 {[%clk 0:02:10]}  Nxa3 {[%clk 0:02:18]} 16. Rxa3 {[%clk 0:02:10]}  c5 {[%clk 0:02:18]} 17. f4 {[%clk 0:02:01]}  Rc8 {[%clk 0:02:13]} 18. f5 {[%clk 0:01:50]}  cxd4 {[%clk 0:02:12]} 19. f6 {[%clk 0:01:46]}  gxf6 {[%clk 0:02:08]} 20. exf6 {[%clk 0:01:45]}  Qd6 {[%clk 0:01:56]} 21. cxd4 {[%clk 0:01:37]}  Nc6 {[%clk 0:01:44]} 22. Nf3 {[%clk 0:01:20]}  Rg8 {[%clk 0:01:38]} 23. Qh7 {[%clk 0:01:17]}  Qg3 {[%clk 0:01:38]} 24. Nh4 {[%clk 0:01:01]}  Qg4 {[%clk 0:01:22]} 25. Ng6 {[%clk 0:00:59]}  Qxd4+ {[%clk 0:01:18]} 26. Kh2 {[%clk 0:00:50]}  Kd7 {[%clk 0:00:55]} 27. Qxf7+ {[%clk 0:00:49]}  Kd6 {[%clk 0:00:55]} 28. Qh7 {[%clk 0:00:40]}  Qg4 {[%clk 0:00:52]} 29. Qxh6 {[%clk 0:00:34]}  Ne5 {[%clk 0:00:47]} 30. f7 {[%clk 0:00:19]}  Nxg6 {[%clk 0:00:31]} 31. fxg8=Q {[%clk 0:00:16]}  Rxg8 {[%clk 0:00:25]} 32. hxg6 {[%clk 0:00:16]}  Qe2 {[%clk 0:00:13]} 33. Qf4+ {[%clk 0:00:15]}  e5 {[%clk 0:00:14]} 34. Qf6+ {[%clk 0:00:15]}  Kc5 {[%clk 0:00:14]} 35. Qf2+ {[%clk 0:00:13]}  Qxf2 {[%clk 0:00:13]} 36. Rxf2 {[%clk 0:00:14]}  Rxg6 {[%clk 0:00:14]} 37. Rb3 {[%clk 0:00:14]}  Rg4 {[%clk 0:00:13]} 38. Rb5+ {[%clk 0:00:13]}  Kc6 {[%clk 0:00:13]} 39. Rf6+ {[%clk 0:00:12]}  Kb7 {[%clk 0:00:13]} 40. Rxd5 {[%clk 0:00:12]} 1-0


[Site "https://www.chess.com"]

[Event "Titled Tuesday Blitz July 05 Early 2022"]
[White "Yaksin, Oleg"]
[Black "Lashkin, Jegor"]
[WhiteFideId "24105880"]
[BlackFideId "13907808"]
[WhiteElo "2256"]
[BlackElo "2368"]
[Result "1/2-1/2"]
[Round "08"]
[TimeControl "180+1"]
[Date "2022.07.05"]
[WhiteClock "0:00:09"]
[BlackClock "0:00:17"]

1. d4 {[%clk 0:02:38]}  Nf6 {[%clk 0:02:59]} 2. c4 {[%clk 0:02:38]}  e6 {[%clk 0:02:59]} 3. g3 {[%clk 0:02:38]}  d5 {[%clk 0:03:00]} 4. Nf3 {[%clk 0:02:38]}  dxc4 {[%clk 0:03:00]} 5. Bg2 {[%clk 0:02:38]}  c6 {[%clk 0:03:00]} 6. Ne5 {[%clk 0:02:29]}  Bb4+ {[%clk 0:02:59]} 7. Nc3 {[%clk 0:02:17]}  Nd5 {[%clk 0:02:58]} 8. Bd2 {[%clk 0:02:16]}  b5 {[%clk 0:02:51]} 9. a4 {[%clk 0:02:16]}  f6 {[%clk 0:02:44]} 10. e4 {[%clk 0:01:30]}  Ne7 {[%clk 0:02:13]} 11. Nf3 {[%clk 0:01:12]}  Bxc3 {[%clk 0:02:09]} 12. bxc3 {[%clk 0:01:12]}  O-O {[%clk 0:02:09]} 13. O-O {[%clk 0:01:12]}  a5 {[%clk 0:02:07]} 14. Nh4 {[%clk 0:01:03]}  Ra7 {[%clk 0:01:46]} 15. f4 {[%clk 0:01:01]}  Na6 {[%clk 0:01:43]} 16. g4 {[%clk 0:00:46]}  b4 {[%clk 0:01:37]} 17. f5 {[%clk 0:00:46]}  bxc3 {[%clk 0:01:29]} 18. Bxc3 {[%clk 0:00:46]}  Nb4 {[%clk 0:01:30]} 19. Qd2 {[%clk 0:00:28]}  Nd3 {[%clk 0:01:21]} 20. Rab1 {[%clk 0:00:16]}  c5 {[%clk 0:01:01]} 21. dxc5 {[%clk 0:00:15]}  Nxc5 {[%clk 0:01:01]} 22. Qe3 {[%clk 0:00:14]}  Rc7 {[%clk 0:00:44]} 23. Bxa5 {[%clk 0:00:14]}  Nd3 {[%clk 0:00:44]} 24. Bxc7 {[%clk 0:00:13]}  Qxc7 {[%clk 0:00:45]} 25. Rfd1 {[%clk 0:00:09]}  Nc6 {[%clk 0:00:40]} 26. Qb6 {[%clk 0:00:09]}  Qf4 {[%clk 0:00:25]} 27. Rxd3 {[%clk 0:00:08]}  cxd3 {[%clk 0:00:24]} 28. Qxc6 {[%clk 0:00:09]}  Qe3+ {[%clk 0:00:23]} 29. Kh1 {[%clk 0:00:09]}  d2 {[%clk 0:00:22]} 30. Nf3 {[%clk 0:00:09]}  exf5 {[%clk 0:00:19]} 31. exf5 {[%clk 0:00:08]}  Rd8 {[%clk 0:00:19]} 32. Rd1 {[%clk 0:00:08]}  Qe2 {[%clk 0:00:16]} 33. Qc2 {[%clk 0:00:07]}  Bb7 {[%clk 0:00:15]} 34. Rxd2 {[%clk 0:00:07]}  Rxd2 {[%clk 0:00:13]} 35. Qxd2 {[%clk 0:00:08]}  Bxf3 {[%clk 0:00:13]} 36. Qxe2 {[%clk 0:00:07]}  Bxe2 {[%clk 0:00:13]} 37. Bb7 {[%clk 0:00:07]}  Bxg4 {[%clk 0:00:08]} 38. a5 {[%clk 0:00:06]}  Be2 {[%clk 0:00:07]} 39. a6 {[%clk 0:00:05]}  Bxa6 {[%clk 0:00:07]} 40. Bxa6 {[%clk 0:00:06]}  g6 {[%clk 0:00:08]} 41. Bd3 {[%clk 0:00:07]}  gxf5 {[%clk 0:00:06]} 42. Bxf5 {[%clk 0:00:08]}  Kg7 {[%clk 0:00:06]} 43. Kg2 {[%clk 0:00:08]}  h5 {[%clk 0:00:06]} 44. Kg3 {[%clk 0:00:09]}  Kh6 {[%clk 0:00:06]} 45. Kh4 {[%clk 0:00:09]}  Kg7 {[%clk 0:00:07]} 46. Kxh5 {[%clk 0:00:10]}  Kh8 {[%clk 0:00:08]} 47. Kh6 {[%clk 0:00:08]}  Kg8 {[%clk 0:00:09]} 48. Kg6 {[%clk 0:00:08]}  Kh8 {[%clk 0:00:10]} 49. h4 {[%clk 0:00:09]}  Kg8 {[%clk 0:00:10]} 50. Kh6 {[%clk 0:00:09]}  Kh8 {[%clk 0:00:11]} 51. h5 {[%clk 0:00:08]}  Kg8 {[%clk 0:00:12]} 52. Kg6 {[%clk 0:00:09]}  Kh8 {[%clk 0:00:13]} 53. Kh6 {[%clk 0:00:08]}  Kg8 {[%clk 0:00:14]} 54. Bg6 {[%clk 0:00:08]}  Kh8 {[%clk 0:00:15]} 55. Bh7 {[%clk 0:00:07]}  f5 {[%clk 0:00:15]} 56. Bxf5 {[%clk 0:00:08]}  Kg8 {[%clk 0:00:15]} 57. Kg6 {[%clk 0:00:09]}  Kh8 {[%clk 0:00:16]} 58. h6 {[%clk 0:00:10]}  Kg8 {[%clk 0:00:17]} 59. h7+ {[%clk 0:00:10]}  Kh8 {[%clk 0:00:17]} 60. Kh6 {[%clk 0:00:09]} 1/2-1/2


[Site "https://www.chess.com"]

[Event "Titled Tuesday Blitz July 05 Early 2022"]
[White "Cherniaiev, Tykhon"]
[Black "Barria Zuniga, Daniel"]
[WhiteFideId "14182360"]
[BlackFideId "3400816"]
[WhiteElo "2263"]
[BlackElo "2414"]
[Result "0-1"]
[Round "09"]
[TimeControl "180+1"]
[Date "2022.07.05"]
[WhiteClock "0:00:43"]
[BlackClock "0:00:25"]

1. Nf3 {[%clk 0:03:00]}  Nf6 {[%clk 0:02:55]} 2. d4 {[%clk 0:03:00]}  e6 {[%clk 0:02:54]} 3. c4 {[%clk 0:03:00]}  b6 {[%clk 0:02:54]} 4. g3 {[%clk 0:03:01]}  Bb7 {[%clk 0:02:53]} 5. Bg2 {[%clk 0:03:01]}  Be7 {[%clk 0:02:54]} 6. O-O {[%clk 0:03:01]}  O-O {[%clk 0:02:55]} 7. Qc2 {[%clk 0:03:01]}  Na6 {[%clk 0:02:51]} 8. a3 {[%clk 0:03:01]}  d6 {[%clk 0:02:45]} 9. Nc3 {[%clk 0:03:00]}  c5 {[%clk 0:02:41]} 10. Rd1 {[%clk 0:03:00]}  cxd4 {[%clk 0:02:39]} 11. Nxd4 {[%clk 0:03:01]}  Bxg2 {[%clk 0:02:38]} 12. Kxg2 {[%clk 0:03:00]}  Rc8 {[%clk 0:02:34]} 13. b3 {[%clk 0:02:44]}  Nc5 {[%clk 0:02:11]} 14. Bb2 {[%clk 0:02:43]}  a6 {[%clk 0:02:10]} 15. b4 {[%clk 0:02:42]}  Ncd7 {[%clk 0:02:10]} 16. Qa4 {[%clk 0:02:38]}  Ne5 {[%clk 0:01:53]} 17. Rab1 {[%clk 0:01:41]}  Nxc4 {[%clk 0:01:42]} 18. Ba1 {[%clk 0:01:40]}  d5 {[%clk 0:01:35]} 19. Qxa6 {[%clk 0:01:31]}  Ra8 {[%clk 0:01:33]} 20. Qb7 {[%clk 0:01:22]}  Nd6 {[%clk 0:01:21]} 21. Qc6 {[%clk 0:01:21]}  Qb8 {[%clk 0:01:20]} 22. e4 {[%clk 0:00:39]}  Rc8 {[%clk 0:01:03]} 23. e5 {[%clk 0:00:38]}  Rxc6 {[%clk 0:00:59]} 24. Nxc6 {[%clk 0:00:39]}  Qb7 {[%clk 0:00:59]} 25. Nxe7+ {[%clk 0:00:36]}  Qxe7 {[%clk 0:01:00]} 26. Re1 {[%clk 0:00:25]}  Rxa3 {[%clk 0:00:25]} 27. exd6 {[%clk 0:00:15]}  Qd7 {[%clk 0:00:18]} 28. Rbc1 {[%clk 0:00:15]}  h5 {[%clk 0:00:13]} 29. h4 {[%clk 0:00:07]}  d4 {[%clk 0:00:12]} 30. Ne2 {[%clk 0:00:04]}  e5 {[%clk 0:00:11]} 31. Ng1 {[%clk 0:00:03]}  Qxd6 {[%clk 0:00:11]} 32. Nf3 {[%clk 0:00:04]}  Qd5 {[%clk 0:00:11]} 33. Bc3 {[%clk 0:00:03]}  Rxc3 {[%clk 0:00:11]} 34. Rxc3 {[%clk 0:00:04]}  dxc3 {[%clk 0:00:11]} 35. Rxe5 {[%clk 0:00:04]}  Qc6 {[%clk 0:00:11]} 36. b5 {[%clk 0:00:04]}  Qc4 {[%clk 0:00:11]} 37. Ne1 {[%clk 0:00:03]}  Nd5 {[%clk 0:00:08]} 38. Nc2 {[%clk 0:00:03]}  Nb4 {[%clk 0:00:08]} 39. Ne3 {[%clk 0:00:02]}  Qd3 {[%clk 0:00:06]} 40. Re8+ {[%clk 0:00:02]}  Kh7 {[%clk 0:00:06]} 41. Rc8 {[%clk 0:00:01]}  c2 {[%clk 0:00:05]} 42. g4 {[%clk 0:00:01]}  hxg4 {[%clk 0:00:05]} 43. Nxg4 {[%clk 0:00:01]}  Qe4+ {[%clk 0:00:04]} 44. Kg3 {[%clk 0:00:02]}  Nd3 {[%clk 0:00:03]} 45. Rxc2 {[%clk 0:00:01]}  Qf4+ {[%clk 0:00:03]} 46. Kh3 {[%clk 0:00:01]}  Qf3+ {[%clk 0:00:04]} 47. Kh2 {[%clk 0:00:01]}  Qxg4 {[%clk 0:00:04]} 48. Rc3 {[%clk 0:00:02]}  Nf4 {[%clk 0:00:03]} 49. Rg3 {[%clk 0:00:02]}  Qxh4+ {[%clk 0:00:03]} 50. Kg1 {[%clk 0:00:03]}  Qxg3+ {[%clk 0:00:04]} 51. fxg3 {[%clk 0:00:03]}  Ne2+ {[%clk 0:00:04]} 52. Kf2 {[%clk 0:00:04]}  Nd4 {[%clk 0:00:05]} 53. Ke3 {[%clk 0:00:05]}  Nxb5 {[%clk 0:00:06]} 54. Kd3 {[%clk 0:00:05]}  Nc7 {[%clk 0:00:07]} 55. Kc4 {[%clk 0:00:06]}  Kg6 {[%clk 0:00:07]} 56. Kb4 {[%clk 0:00:07]}  Kg5 {[%clk 0:00:08]} 57. Kc3 {[%clk 0:00:08]}  Kg4 {[%clk 0:00:09]} 58. Kd3 {[%clk 0:00:09]}  Kxg3 {[%clk 0:00:10]} 59. Kd4 {[%clk 0:00:10]}  Kg4 {[%clk 0:00:11]} 60. Ke4 {[%clk 0:00:10]}  Kg5 {[%clk 0:00:11]} 61. Ke5 {[%clk 0:00:11]}  Kg6 {[%clk 0:00:12]} 62. Kd6 {[%clk 0:00:12]}  Kh7 {[%clk 0:00:13]} 63. Kxc7 {[%clk 0:00:13]}  Kg8 {[%clk 0:00:13]} 64. Kc6 {[%clk 0:00:14]}  g5 {[%clk 0:00:14]} 65. Kxb6 {[%clk 0:00:15]}  Kg7 {[%clk 0:00:15]} 66. Kc5 {[%clk 0:00:16]}  Kg6 {[%clk 0:00:15]} 67. Kd4 {[%clk 0:00:17]}  Kh5 {[%clk 0:00:16]} 68. Ke3 {[%clk 0:00:18]}  Kg4 {[%clk 0:00:17]} 69. Kf2 {[%clk 0:00:18]}  Kh3 {[%clk 0:00:18]} 70. Kf3 {[%clk 0:00:19]}  g4+ {[%clk 0:00:18]} 71. Kf2 {[%clk 0:00:20]}  Kh2 {[%clk 0:00:18]} 72. Ke3 {[%clk 0:00:20]}  g3 {[%clk 0:00:18]} 73. Kf4 {[%clk 0:00:21]}  g2 {[%clk 0:00:18]} 74. Kf5 {[%clk 0:00:22]}  g1=Q {[%clk 0:00:18]} 75. Kf6 {[%clk 0:00:23]}  Qg6+ {[%clk 0:00:18]} 76. Ke7 {[%clk 0:00:23]}  Qe6+ {[%clk 0:00:17]} 77. Kf8 {[%clk 0:00:24]}  f5 {[%clk 0:00:17]} 78. Kg7 {[%clk 0:00:25]}  Qe3 {[%clk 0:00:17]} 79. Kf8 {[%clk 0:00:26]}  f4 {[%clk 0:00:17]} 80. Kg7 {[%clk 0:00:27]}  Qe2 {[%clk 0:00:17]} 81. Kf6 {[%clk 0:00:28]}  f3 {[%clk 0:00:18]} 82. Kf5 {[%clk 0:00:29]}  Kg2 {[%clk 0:00:18]} 83. Kg4 {[%clk 0:00:29]}  Kf2 {[%clk 0:00:18]} 84. Kf4 {[%clk 0:00:29]}  Qc4+ {[%clk 0:00:18]} 85. Kg5 {[%clk 0:00:29]}  Ke3 {[%clk 0:00:18]} 86. Kh5 {[%clk 0:00:30]}  Qf4 {[%clk 0:00:18]} 87. Kg6 {[%clk 0:00:30]}  Qe5 {[%clk 0:00:18]} 88. Kf7 {[%clk 0:00:30]}  Qd6 {[%clk 0:00:18]} 89. Ke8 {[%clk 0:00:31]}  Qc7 {[%clk 0:00:18]} 90. Kf8 {[%clk 0:00:31]}  Qd7 {[%clk 0:00:18]} 91. Kg8 {[%clk 0:00:32]}  Qe7 {[%clk 0:00:18]} 92. Kh8 {[%clk 0:00:33]}  Kd2 {[%clk 0:00:18]} 93. Kg8 {[%clk 0:00:34]}  Kc1 {[%clk 0:00:18]} 94. Kh8 {[%clk 0:00:34]}  Kb2 {[%clk 0:00:19]} 95. Kg8 {[%clk 0:00:35]}  Ka3 {[%clk 0:00:19]} 96. Kh8 {[%clk 0:00:36]}  Kb4 {[%clk 0:00:20]} 97. Kg8 {[%clk 0:00:37]}  Ka5 {[%clk 0:00:21]} 98. Kh8 {[%clk 0:00:38]}  Kb6 {[%clk 0:00:21]} 99. Kg8 {[%clk 0:00:39]}  Kc7 {[%clk 0:00:22]} 100. Kh8 {[%clk 0:00:40]}  Kd6 {[%clk 0:00:22]} 101. Kg8 {[%clk 0:00:41]}  Ke5 {[%clk 0:00:23]} 102. Kh8 {[%clk 0:00:42]}  Kf5 {[%clk 0:00:24]} 103. Kg8 {[%clk 0:00:43]}  Kg6 {[%clk 0:00:24]} 104. Kh8 {[%clk 0:00:43]}  Qg7# {[%clk 0:00:25]} 0-1


[Site "https://www.chess.com"]

[Event "Titled Tuesday Blitz July 05 Early 2022"]
[White "Deac, Bogdan-Daniel"]
[Black "Ibarra Jerez, Jose Carlos"]
[WhiteFideId "1226380"]
[BlackFideId "2226332"]
[WhiteElo "2648"]
[BlackElo "2628"]
[Result "1-0"]
[Round "09"]
[TimeControl "180+1"]
[Date "2022.07.05"]
[WhiteClock "0:00:04"]
[BlackClock "0:00:05"]

1. d4 {[%clk 0:02:55]}  Nf6 {[%clk 0:02:59]} 2. c4 {[%clk 0:02:51]}  d6 {[%clk 0:03:00]} 3. Nf3 {[%clk 0:02:50]}  g6 {[%clk 0:03:00]} 4. g3 {[%clk 0:02:49]}  Bf5 {[%clk 0:03:00]} 5. Bg2 {[%clk 0:02:49]}  Bg7 {[%clk 0:03:01]} 6. Qb3 {[%clk 0:02:39]}  Qc8 {[%clk 0:02:49]} 7. Nc3 {[%clk 0:02:39]}  Nc6 {[%clk 0:02:43]} 8. d5 {[%clk 0:02:35]}  Nd8 {[%clk 0:02:43]} 9. h3 {[%clk 0:02:31]}  O-O {[%clk 0:02:41]} 10. Be3 {[%clk 0:02:01]}  c5 {[%clk 0:02:30]} 11. dxc6 {[%clk 0:01:47]}  Nxc6 {[%clk 0:02:29]} 12. Qa3 {[%clk 0:01:42]}  Nd7 {[%clk 0:02:14]} 13. Rc1 {[%clk 0:01:35]}  a6 {[%clk 0:02:05]} 14. g4 {[%clk 0:01:02]}  Be6 {[%clk 0:02:01]} 15. Nd5 {[%clk 0:01:02]}  h6 {[%clk 0:01:24]} 16. Nd4 {[%clk 0:00:48]}  Kh7 {[%clk 0:01:21]} 17. Nxe6 {[%clk 0:00:38]}  fxe6 {[%clk 0:01:20]} 18. Nf4 {[%clk 0:00:38]}  Nde5 {[%clk 0:01:01]} 19. Be4 {[%clk 0:00:34]}  Rf6 {[%clk 0:00:56]} 20. Nh5 {[%clk 0:00:31]}  Rf7 {[%clk 0:00:49]} 21. Nxg7 {[%clk 0:00:30]}  Kxg7 {[%clk 0:00:50]} 22. f4 {[%clk 0:00:14]}  Nd7 {[%clk 0:00:49]} 23. Qd3 {[%clk 0:00:13]}  Nf8 {[%clk 0:00:34]} 24. O-O {[%clk 0:00:10]}  Qc7 {[%clk 0:00:28]} 25. b4 {[%clk 0:00:10]}  Rd8 {[%clk 0:00:27]} 26. b5 {[%clk 0:00:08]}  Nb8 {[%clk 0:00:27]} 27. bxa6 {[%clk 0:00:07]}  Nxa6 {[%clk 0:00:26]} 28. Bd4+ {[%clk 0:00:04]}  Kg8 {[%clk 0:00:26]} 29. Qe3 {[%clk 0:00:04]}  Nc5 {[%clk 0:00:24]} 30. f5 {[%clk 0:00:04]}  exf5 {[%clk 0:00:22]} 31. gxf5 {[%clk 0:00:03]}  g5 {[%clk 0:00:20]} 32. Bd5 {[%clk 0:00:03]}  Nh7 {[%clk 0:00:14]} 33. Rb1 {[%clk 0:00:03]}  b6 {[%clk 0:00:12]} 34. Bxc5 {[%clk 0:00:02]}  dxc5 {[%clk 0:00:08]} 35. Bxf7+ {[%clk 0:00:02]}  Kxf7 {[%clk 0:00:09]} 36. Kg2 {[%clk 0:00:02]}  Rd6 {[%clk 0:00:07]} 37. Qe5 {[%clk 0:00:02]}  Nf6 {[%clk 0:00:07]} 38. Rf3 {[%clk 0:00:02]}  Qd7 {[%clk 0:00:07]} 39. Qe3 {[%clk 0:00:02]}  Rd4 {[%clk 0:00:07]} 40. Rxb6 {[%clk 0:00:02]}  Re4 {[%clk 0:00:07]} 41. Qd3 {[%clk 0:00:02]}  Qa7 {[%clk 0:00:07]} 42. Rxf6+ {[%clk 0:00:02]}  Kxf6 {[%clk 0:00:06]} 43. Qxe4 {[%clk 0:00:03]}  h5 {[%clk 0:00:03]} 44. Qe6+ {[%clk 0:00:03]}  Kg7 {[%clk 0:00:04]} 45. f6+ {[%clk 0:00:04]}  Kf8 {[%clk 0:00:05]} 46. fxe7+ {[%clk 0:00:04]} 1-0


[Site "https://www.chess.com"]